[Event "Niedersachsen-ch Meister 2024"]
[Site "Verden Aller"]
[Date "2024.01.05"]
[Round "4.7"]
[White "Pubantz, Jan"]
[Black "Tonndorf, Matthias"]
[Result "1/2-1/2"]
[ECO "C09"]
[WhiteElo "2288"]
[BlackElo "2184"]
[Annotator "RC"]
[PlyCount "239"]
[EventDate "2024.01.01"]
[EventType "swiss"]
[EventCountry "GER"]
[SourceTitle "playchess.com"]
[Source "ChessBase"]
[SourceQuality "1"]
[TimeControl "40/5400+30:1800+30"]

1. e4 {[%emt 0:01:27]} c5 {[%emt 0:00:08]} 2. c3 {[%emt 0:00:06]} e6 {[%emt 0:04:54]} 3. Nf3 {[%emt 0:00:04]} Nc6 {[%emt 0:03:09]} 4. d4 {[%emt 0:00:57]} d5 {[%emt 0:01:22]} 5. exd5 {[%emt 0:01:19]} exd5 {[%emt 0:00:59]} 6. Bb5 {[%emt 0:01:32]} Bd6 {[%emt 0:05:41]} 7. O-O {[%emt 0:03:31]} Nge7 {[%emt 0:00:39]} 8. dxc5 {[%emt 0:00:44]} Bxc5 {[%emt 0:00:08]} 9. Nbd2 {[%emt 0:01:03]} O-O {[%emt 0:00:49]} 10. Nb3 {[%emt 0:00:41]} Bd6 {[%emt 0:02:49]} 11. h3 {[%emt 0:03:31]} Bf5 {[%emt 0:05:53]} 12. Bd3 {[%emt 0:11:14]} Bxd3 {[%emt 0:02:30]} 13. Qxd3 {[%emt 0:00:03]} h6 {[%emt 0:04:44]} 14. Be3 {[%emt 0:01:39]} Qd7 {[%emt 0:02:47]} 15. Rad1 {[%emt 0:01:27]} Rad8 {[%emt 0:02:29]} 16. Rfe1 {[%emt 0:04:55]} Rfe8 {[%emt 0:03:38]} 17. Bc5 {[%emt 0:02:57]} Bxc5 {[%emt 0:01:30]} 18. Nxc5 {[%emt 0:00:04]} Qc7 {[%emt 0:00:12]} 19. Nb3 {[%emt 0:01:54]} Ng6 {[%emt 0:06:37]} 20. Qf5 {[%emt 0:05:01]} Rxe1+ {[%emt 0:03:31]} 21. Rxe1 {[%emt 0:05:14]} Qb6 {[%emt 0:03:08]} 22. Qd3 {[%emt 0:01:39]} Nf4 {[%emt 0:01:43]} 23. Qe3 {[%emt 0:01:41]} Qxe3 {[%emt 0:03:38]} 24. Rxe3 {[%emt 0:00:04]} Kf8 {[%emt 0:00:44]} 25. Kh2 {[%emt 0:06:39]} Ne6 {[%emt 0:00:36]} 26. Rd3 {[%emt 0:04:15]} f6 {[%emt 0:02:53]} 27. Rd2 {[%emt 0:01:21]} Kf7 {[%emt 0:00:20]} 28. g3 {[%emt 0:00:59]} Ne5 {[%emt 0:01:56]} 29. Nfd4 {[%emt 0:07:18]} Ng5 {[%emt 0:02:18]} 30. Kg2 {[%emt 0:02:14]} Ne4 {[%emt 0:02:13]} 31. Re2 {[%emt 0:06:30]} Nc4 {[%emt 0:05:25]} 32. Nf5 {[%emt 0:08:47]} Ned6 {[%emt 0:07:16]} 33. Nxd6+ {[%emt 0:04:23]} Rxd6 {[%emt 0:00:17]} 34. Nd4 {[%emt 0:00:47]} Rd7 {[%emt 0:06:12]} 35. Nf5 {[%emt 0:01:45]} h5 {[%emt 0:01:34]} 36. Kf1 {[%emt 0:02:33]} g6 {[%emt 0:01:44]} 37. Nd4 {[%emt 0:00:56]} Rd6 {[%emt 0:02:01]} 38. Ke1 {[%emt 0:01:46]} Rd7 {[%emt 0:06:57]} 39. Kf1 {[%emt 0:00:01]} Rd6 {[%emt 0:00:12]} 40. b3 {[%emt 0:06:02]} Ne5 {[%emt 0:01:20]} 41. Rd2 {[%emt 0:12:38]} a6 {[%emt 0:02:22]} 42. Ke2 {[%emt 0:03:35]} Nd7 {[%emt 0:00:30]} 43. g4 {[%emt 0:03:50]} hxg4 {[%emt 0:00:44]} 44. hxg4 {[%emt 0:00:02]} Nc5 {[%emt 0:00:45]} 45. f3 {[%emt 0:01:52]} Rd8 {[%emt 0:00:15]} 46. Kf2 {[%emt 0:00:43]} Rh8 {[%emt 0:02:01]} 47. Ne2 {[%emt 0:01:27]} Ne6 {[%emt 0:00:55]} 48. Kg3 {[%emt 0:05:27]} Rd8 {[%emt 0:01:03]} 49. Nf4 {[%emt 0:02:02]} Nxf4 {[%emt 0:03:19]} 50. Kxf4 {[%emt 0:00:01]} Ke6 {[%emt 0:01:27]} 51. Re2+ {[%emt 0:00:21]} Kf7 {[%emt 0:02:40]} 52. Rh2 {[%emt 0:00:34]} Kg7 {[%emt 0:00:54]} 53. Rd2 {[%emt 0:00:02]} Kf7 {[%emt 0:00:40]} 54. Rh2 {[%emt 0:02:35]} Kg7 {[%emt 0:00:09]} 55. Re2 {[%emt 0:01:54]} Kf7 {[%emt 0:01:18]} 56. Rd2 {[%emt 0:00:35]} Ke6 {[%emt 0:01:25]} 57. g5 {[%emt 0:00:53]} Rf8 {[%emt 0:00:54]} 58. Re2+ {[%emt 0:00:42]} Kf7 {[%emt 0:21:13]} 59. Rh2 {[%emt 0:00:22]} Ke6 {[%emt 0:00:00]} 60. Re2+ {[%emt 0:00:54]} Kf7 {[%emt 0:00:00]} 61. Rh2 {[%emt 0:00:35]} Ke6 {[%emt 0:00:00]} 62. gxf6 {[%emt 0:00:46]} Rxf6+ {[%emt 0:00:00]} 63. Kg4 {[%emt 0:00:29]} Rf7 {[%emt 0:00:00]} 64. f4 {[%emt 0:00:26]} Rc7 {[%emt 0:00:00]} 65. Rh6 {[%emt 0:00:36]} Kf6 {[%emt 0:00:00]} 66. f5 {[%emt 0:00:27]} Rxc3 {[%emt 0:00:00]} 67. Rxg6+ {[%emt 0:00:14]} Kf7 {[%emt 0:00:00]} 68. Rd6 {[%emt 0:00:48]} Rc2 {[%emt 0:00:00]} 69. a4 {[%emt 0:00:29]} Ke7 {[%emt 0:00:00]} 70. Rb6 {[%emt 0:00:03]} Rc7 {[%emt 0:00:00]} 71. Rh6 {[%emt 0:00:59]} Kf8 {[%emt 0:00:00]} 72. Rd6 {[%emt 0:00:33]} Ke7 {[%emt 0:00:00]} 73. Rh6 {[%emt 0:00:17]} Kf8 {[%emt 0:00:00]} 74. Rh8+ {[%emt 0:00:18]} Kg7 {[%emt 0:00:00]} 75. Rd8 {[%emt 0:00:08]} Kf6 {[%emt 0:00:00]} 76. Rxd5 {[%emt 0:00:35]} Rc6 {[%emt 0:00:00]} 77. Rd4 {[%emt 0:00:58]} a5 {[%emt 0:00:00]} 78. Rd5 {[%emt 0:00:38]} b6 {[%emt 0:00:10]} 79. Kf4 {[%emt 0:00:35]} Ke7 {[%emt 0:01:20]} 80. Ke5 {[%emt 0:00:24]} Rh6 {[%emt 0:00:35]} 81. Rd3 {[%emt 0:00:25]} Rc6 {[%emt 0:00:33]} 82. Rh3 {[%emt 0:00:40]} Rc5+ {[%emt 0:00:22]} 83. Kf4 {[%emt 0:00:28]} b5 {[%emt 0:00:39]} 84. axb5 {[%emt 0:00:32]} Rxb5 {[%emt 0:00:02]} 85. Kg5 {[%emt 0:00:27]} Kf7 {[%emt 0:00:14]} 86. Rh7+ {[%emt 0:00:33]} Kg8 {[%emt 0:00:07]} 87. Rh3 {[%emt 0:00:29]} Kg7 {[%emt 0:00:19]} 88. Rd3 {[%emt 0:00:22]} Rb7 {[%emt 0:10:39]} 89. Rh3 {[%emt 0:00:24]} Rb5 {[%emt 0:00:00]} 90. Re3 {[%emt 0:00:38]} Kf7 {[%emt 0:00:00]} 91. Rc3 {[%emt 0:00:23]} Rb7 {[%emt 0:00:00]} 92. Rh3 {[%emt 0:00:21]} Rb5 {[%emt 0:00:00]} 93. Rh7+ {[%emt 0:00:48]} Kg8 {[%emt 0:00:00]} 94. Ra7 {[%emt 0:00:30]} Rxb3 {[%emt 0:00:00]} 95. Kg6 {[%emt 0:00:03]} Rg3+ {[%emt 0:00:00]} 96. Kf6 {[%emt 0:00:00]} Rb3 {[%emt 0:00:00]} 97. Ra8+ {[%emt 0:00:09]} Kh7 {[%emt 0:00:00]} 98. Kf7 {[%emt 0:01:46]} Rb7+ {[%emt 0:00:00]} 99. Kf8 {[%emt 0:00:32]} Rb6 {[%emt 0:00:00]} 100. Kf7 {[%emt 0:00:37]} Rb7+ {[%emt 0:00:00]} 101. Kf8 {[%emt 0:00:20]} Rb6 {[%emt 0:00:02]} 102. Ke7 {[%emt 0:00:39]} Rb7+ {[%emt 0:00:12]} 103. Kf6 {[%emt 0:00:30]} Rb6+ {[%emt 0:00:10]} 104. Kg5 {[%emt 0:00:20]} Kg7 {[%emt 0:00:30]} 105. Ra7+ {[%emt 0:00:15]} Kg8 {[%emt 0:00:09]} 106. Rxa5 {[%emt 0:00:12]} Rc6 {[%emt 0:00:19]} 107. Ra7 {[%emt 0:00:15]} Rb6 {[%emt 0:00:07]} 108. Re7 {[%emt 0:00:10]} Kf8 {[%emt 0:00:16]} 109. Rh7 {[%emt 0:00:22]} Kg8 {[%emt 0:00:15]} 110. Rd7 {[%emt 0:00:39]} Ra6 {[%emt 0:00:07]} 111. Rd5 {[%emt 0:00:45]} Kg7 {[%emt 0:00:26]} 112. Re5 {[%emt 0:00:24]} Kf7 {[%emt 0:00:12]} 113. Rc5 {[%emt 0:00:29]} Rb6 {[%emt 0:00:06]} 114. f6 {[%emt 0:00:19]} Rb1 {[%emt 0:00:18]} 115. Rc7+ {[%emt 0:00:13]} Kf8 {[%emt 0:00:16]} 116. Rc8+ {[%emt 0:01:00]} Kf7 {[%emt 0:00:06]} 117. Rc7+ {[%emt 0:00:05]} Kf8 {[%emt 0:00:05]} 118. Kg6 {[%emt 0:00:33]} Rg1+ {[%emt 0:00:08]} 119. Kf5 {[%emt 0:00:20]} Rf1+ {[%emt 0:00:08]} 120. Ke6 {[%emt 0:00:26]} 1/2-1/2

[Event "Niedersachsen-ch Meister 2024"]
[Site "Verden Aller"]
[Date "2024.01.05"]
[Round "4.8"]
[White "Sauer, Tim"]
[Black "Laubsch, Bernd"]
[Result "0-1"]
[ECO "D76"]
[WhiteElo "2126"]
[BlackElo "2259"]
[Annotator "RC"]
[PlyCount "91"]
[EventDate "2024.01.01"]
[EventType "swiss"]
[EventCountry "GER"]
[SourceTitle "playchess.com"]
[Source "ChessBase"]
[SourceQuality "1"]
[TimeControl "40/5400+30:1800+30"]

1. c4 {[%emt 0:02:12]} Nf6 {[%emt 0:00:18]} 2. Nf3 {[%emt 0:00:43]} g6 {[%emt 0:00:19]} 3. g3 {[%emt 0:01:29]} Bg7 {[%emt 0:00:40]} 4. Bg2 {[%emt 0:00:33]} O-O {[%emt 0:01:04]} 5. O-O {[%emt 0:00:10]} d5 {[%emt 0:00:15]} 6. d4 {[%emt 0:04:45]} Nc6 {[%emt 0:03:08]} 7. cxd5 {[%emt 0:29:20]} Nxd5 {[%emt 0:00:11]} 8. Nc3 {[%emt 0:07:24]} Nb6 {[%emt 1:28:35]} 9. e3 {[%emt 0:10:18]} Re8 {[%emt 0:04:44]} 10. Re1 {[%emt 0:08:49]} e5 {[%emt 0:07:32]} 11. d5 {[%emt 0:01:01]} Na5 {[%emt 0:00:20]} 12. e4 {[%emt 0:00:52]} c6 {[%emt 0:02:42]} 13. Be3 {[%emt 0:07:17]} Nac4 {[%emt 0:11:45]} 14. Bc1 {[%emt 0:11:15]} cxd5 {[%emt 0:05:24]} 15. exd5 {[%emt 0:00:14]} Nd6 {[%emt 0:11:36]} 16. Nd2 {[%emt 0:04:16]} f5 {[%emt 0:06:38]} 17. Qb3 {[%emt 0:00:54]} Bd7 {[%emt 0:01:58]} 18. Nf1 {[%emt 0:01:29]} h6 {[%emt 0:03:45]} 19. Be3 {[%emt 0:00:56]} Nbc4 {[%emt 0:03:19]} 20. Rac1 {[%emt 0:02:00]} Qa5 {[%emt 0:04:00]} 21. a3 {[%emt 0:02:03]} Rac8 {[%emt 0:01:13]} 22. Qa2 {[%emt 0:01:21]} b5 {[%emt 0:11:12]} 23. b4 {[%emt 0:01:19]} Qxa3 {[%emt 0:04:38]} 24. Qxa3 {[%emt 0:00:09]} Nxa3 {[%emt 0:00:05]} 25. Bxa7 {[%emt 0:00:07]} e4 {[%emt 0:00:29]} 26. Ne2 {[%emt 0:01:49]} Nc2 {[%emt 0:01:37]} 27. Red1 {[%emt 0:00:06]} Na3 {[%emt 0:08:12]} 28. Ne3 {[%emt 0:00:50]} Ndc4 {[%emt 0:00:47]} 29. Nd4 {[%emt 0:00:45]} Bf8 {[%emt 0:03:20]} 30. Nec2 {[%emt 0:00:26]} Nxc2 {[%emt 0:00:36]} 31. Rxc2 {[%emt 0:00:34]} Bxb4 {[%emt 0:00:21]} 32. Nb3 {[%emt 0:00:20]} Na3 {[%emt 0:01:53]} 33. Rxc8 {[%emt 0:00:31]} Rxc8 {[%emt 0:00:06]} 34. Bf1 {[%emt 0:00:26]} Kf7 {[%emt 0:00:45]} 35. Be3 {[%emt 0:00:33]} g5 {[%emt 0:00:27]} 36. Nd4 {[%emt 0:00:17]} Bd6 {[%emt 0:01:31]} 37. Bh3 {[%emt 0:00:50]} Kf6 {[%emt 0:00:25]} 38. Ra1 {[%emt 0:01:07]} b4 {[%emt 0:00:25]} 39. Rd1 {[%emt 0:00:31]} Nc2 {[%emt 0:00:48]} 40. Nxc2 {[%emt 0:00:30]} Rxc2 {[%emt 0:00:06]} 41. Bg2 {[%emt 0:04:24]} b3 {[%emt 0:06:39]} 42. f3 {[%emt 0:03:37]} f4 {[%emt 0:00:42]} 43. gxf4 {[%emt 0:02:58]} gxf4 {[%emt 0:00:11]} 44. Bd4+ {[%emt 0:02:10]} Be5 {[%emt 0:00:09]} 45. Bxe5+ {[%emt 0:02:08]} Kxe5 {[%emt 0:00:07]} 46. Bf1 {[%emt 0:18:16]} 0-1

[Event "Niedersachsen-ch Meister 2024"]
[Site "Verden Aller"]
[Date "2024.01.05"]
[Round "4.9"]
[White "Hans, Julian"]
[Black "Bargsten, Justus"]
[Result "0-1"]
[ECO "C51"]
[WhiteElo "1925"]
[BlackElo "2216"]
[Annotator "RC"]
[PlyCount "50"]
[EventDate "2024.01.01"]
[EventType "swiss"]
[EventCountry "GER"]
[SourceTitle "playchess.com"]
[Source "ChessBase"]
[SourceQuality "1"]
[TimeControl "40/5400+30:1800+30"]

1. e4 {[%emt 0:00:07]} e5 {[%emt 0:00:20]} 2. Nf3 {[%emt 0:00:30]} Nc6 {[%emt 0:00:03]} 3. Bc4 {[%emt 0:00:33]} Bc5 {[%emt 0:00:06]} 4. b4 {[%emt 0:01:05]} Bxb4 {[%emt 0:00:05]} 5. c3 {[%emt 0:00:21]} Be7 {[%emt 0:00:04]} 6. d4 {[%emt 0:01:03]} Na5 {[%emt 0:00:33]} 7. Nxe5 {[%emt 0:00:55]} Nxc4 {[%emt 0:00:06]} 8. Nxc4 {[%emt 0:00:05]} d5 {[%emt 0:00:03]} 9. exd5 {[%emt 0:00:05]} Qxd5 {[%emt 0:00:05]} 10. Ne3 {[%emt 0:00:04]} Qa5 {[%emt 0:00:04]} 11. O-O {[%emt 0:00:32]} Be6 {[%emt 0:09:23]} 12. Qf3 {[%emt 0:13:07]} c6 {[%emt 0:02:19]} 13. Bb2 {[%emt 0:23:30]} Nf6 {[%emt 0:03:02]} 14. Nd2 {[%emt 0:01:01]} O-O {[%emt 0:00:46]} 15. Nb3 {[%emt 0:01:58]} Qg5 {[%emt 0:05:50]} 16. Qg3 {[%emt 0:10:18]} Qxg3 {[%emt 0:07:10]} 17. hxg3 {[%emt 0:00:14]} a5 {[%emt 0:00:43]} 18. Nd2 {[%emt 0:02:55]} b5 {[%emt 0:04:59]} 19. Nf3 {[%emt 0:08:31]} Nd5 {[%emt 0:04:03]} 20. Nxd5 {[%emt 0:05:45]} Bxd5 {[%emt 0:00:12]} 21. Ne5 {[%emt 0:00:19]} Rfe8 {[%emt 0:05:56]} 22. Rfe1 {[%emt 0:04:26]} Bd6 {[%emt 0:02:30]} 23. f4 {[%emt 0:02:46]} f6 {[%emt 0:01:29]} 24. Nf3 {[%emt 0:01:42]} Rxe1+ {[%emt 0:00:22]} 25. Nxe1 {[%emt 0:00:40]} Re8 {[%emt 0:00:17]} 0-1

[Event "Niedersachsen-ch Meister 2024"]
[Site "Verden Aller"]
[Date "2024.01.05"]
[Round "4.10"]
[White "Muecke, Leonard"]
[Black "Reimer, Philip"]
[Result "0-1"]
[ECO "B33"]
[WhiteElo "1694"]
[BlackElo "2152"]
[Annotator "ChessBase"]
[PlyCount "69"]
[EventDate "2024.01.01"]
[EventType "swiss"]
[EventCountry "GER"]
[SourceTitle "playchess.com"]
[Source "ChessBase"]
[SourceQuality "1"]
[TimeControl "40/5400+30:1800+30"]

1. e4 {[%emt 1:31:00]} c5 {[%emt 0:01:37]} 2. Nf3 {[%emt 0:00:00]} Nc6 {[%emt 0:00:04]} 3. d4 {[%emt 0:00:00]} cxd4 {[%emt 0:00:04]} 4. Nxd4 {[%emt 0:00:00]} Nf6 {[%emt 0:00:04]} 5. f3 {[%emt 0:00:00]} e6 {[%emt 0:00:32]} 6. c4 {[%emt 0:00:00]} Qb6 {[%emt 0:00:14]} 7. Nxc6 {[%emt 0:00:00]} bxc6 {[%emt 0:00:06]} 8. Bd3 {[%emt 0:00:00]} d5 {[%emt 0:03:03]} 9. exd5 {[%emt 0:00:00]} cxd5 {[%emt 0:01:12]} 10. Qe2 {[%emt 0:00:00]} Bb4+ {[%emt 0:12:46]} 11. Nd2 {[%emt 0:00:00]} O-O {[%emt 0:06:23]} 12. a3 {[%emt 0:00:00]} Be7 {[%emt 0:10:33]} 13. Nb1 {[%emt 0:00:00]} Bb7 {[%emt 0:23:39]} 14. Be3 {[%emt 0:00:00]} Bc5 {[%emt 0:03:03]} 15. Bxc5 {[%emt 0:00:00]} Qxc5 {[%emt 0:00:05]} 16. Nc3 {[%emt 0:00:00]} Rac8 {[%emt 0:04:50]} 17. Qf2 {[%emt 0:00:00]} dxc4 {[%emt 0:03:26]} 18. Qxc5 {[%emt 0:00:00]} Rxc5 {[%emt 0:00:07]} 19. Be2 {[%emt 0:00:00]} Rcc8 {[%emt 0:02:46]} 20. Kf2 {[%emt 0:00:00]} Bd5 {[%emt 0:06:50]} 21. Rhd1 {[%emt 0:01:08]} Rb8 {[%emt 0:01:40]} 22. Ra2 {[%emt 0:01:50]} Rfc8 {[%emt 0:04:17]} 23. Rd4 {[%emt 0:00:52]} Kf8 {[%emt 0:00:39]} 24. f4 {[%emt 0:00:35]} Ke7 {[%emt 0:01:13]} 25. Bf3 {[%emt 0:01:34]} Bxf3 {[%emt 0:00:31]} 26. Kxf3 {[%emt 0:01:14]} Rb3 {[%emt 0:03:16]} 27. Ke2 {[%emt 0:01:54]} Rb7 {[%emt 0:00:04]} 28. h3 {[%emt 0:00:57]} Rd7 {[%emt 0:02:05]} 29. Rxd7+ {[%emt 0:00:09]} Kxd7 {[%emt 0:00:06]} 30. Ra1 {[%emt 0:00:21]} Nd5 {[%emt 0:00:58]} 31. Rd1 {[%emt 0:00:39]} Kc6 {[%emt 0:00:53]} 32. Kf3 {[%emt 0:01:44]} Rb8 {[%emt 0:00:37]} 33. Rd4 {[%emt 0:02:19]} Kc5 {[%emt 0:01:00]} 34. Rd1 {[%emt 0:00:21]} Rb3 {[%emt 0:00:43]} 35. Kf2 {[%emt 0:00:00]} 0-1

[Event "Niedersachsen-ch Meister 2024"]
[Site "Verden Aller"]
[Date "2024.01.05"]
[Round "4.11"]
[White "Bundan, Edward"]
[Black "Evering, Soeren"]
[Result "1/2-1/2"]
[ECO "C68"]
[WhiteElo "1706"]
[BlackElo "2034"]
[Annotator "NA"]
[PlyCount "38"]
[EventDate "2024.01.01"]
[EventType "swiss"]
[EventCountry "GER"]
[SourceTitle "playchess.com"]
[Source "ChessBase"]
[SourceQuality "1"]
[TimeControl "40/5400+30:1800+30"]

1. e4 {[%emt 0:00:01]} e5 {[%emt 0:00:12]} 2. Nf3 {[%emt 0:00:05]} Nc6 {[%emt 0:00:13]} 3. Bb5 {[%emt 0:00:19]} a6 {[%emt 0:00:09]} 4. Bxc6 {[%emt 0:00:41]} dxc6 {[%emt 0:00:05]} 5. h3 {[%emt 0:01:03]} Bd6 {[%emt 0:04:39]} 6. O-O {[%emt 0:01:33]} c5 {[%emt 0:04:00]} 7. c3 {[%emt 0:09:21]} Ne7 {[%emt 0:03:34]} 8. d4 {[%emt 0:00:37]} cxd4 {[%emt 0:00:23]} 9. cxd4 {[%emt 0:00:24]} exd4 {[%emt 0:00:29]} 10. Qxd4 {[%emt 0:00:46]} O-O {[%emt 0:01:09]} 11. Nc3 {[%emt 0:04:26]} Nc6 {[%emt 0:01:27]} 12. Qd1 {[%emt 0:01:20]} h6 {[%emt 0:06:44]} 13. Be3 {[%emt 0:02:55]} Re8 {[%emt 0:16:07]} 14. Re1 {[%emt 0:04:14]} Be6 {[%emt 0:15:04]} 15. Qd2 {[%emt 0:06:14]} Qf6 {[%emt 0:12:03]} 16. Bd4 {[%emt 0:20:17]} Qg6 {[%emt 0:07:47]} 17. Kh1 {[%emt 0:01:28]} Qh5 {[%emt 0:02:51]} 18. Ng1 {[%emt 0:06:41]} Rad8 {[%emt 0:10:04]} 19. Qe2 {[%emt 0:03:48]} Qg6 {[%emt 0:02:34]} 1/2-1/2

[Event "Niedersachsen-ch Meister 2024"]
[Site "Verden Aller"]
[Date "2024.01.05"]
[Round "4.12"]
[White "Elsner, Robert"]
[Black "Aden, Tammo"]
[Result "1-0"]
[ECO "E05"]
[WhiteElo "2030"]
[BlackElo "2025"]
[Annotator "NA RC"]
[PlyCount "85"]
[EventDate "2024.01.01"]
[EventType "swiss"]
[EventCountry "GER"]
[SourceTitle "playchess.com"]
[Source "ChessBase"]
[SourceQuality "1"]
[TimeControl "40/5400+30:1800+30"]

1. d4 {[%emt 0:00:18]} d5 {[%emt 0:00:15]} 2. c4 {[%emt 0:00:08]} e6 {[%emt 0:00:14]} 3. g3 {[%emt 0:00:28]} Nf6 {[%emt 0:00:09]} 4. Bg2 {[%emt 0:00:05]} Be7 {[%emt 0:00:04]} 5. Nf3 {[%emt 0:00:06]} O-O {[%emt 0:00:13]} 6. O-O {[%emt 0:00:06]} dxc4 {[%emt 0:00:30]} 7. Qc2 {[%emt 0:00:05]} a6 {[%emt 0:00:35]} 8. a4 {[%emt 0:00:34]} Bd7 {[%emt 0:02:28]} 9. Qxc4 {[%emt 0:00:11]} Bc6 {[%emt 0:01:32]} 10. Bg5 {[%emt 0:00:11]} Nbd7 {[%emt 0:01:51]} 11. Nc3 {[%emt 0:03:42]} h6 {[%emt 0:04:53]} 12. Bxf6 {[%emt 0:00:05]} Nxf6 {[%emt 0:00:11]} 13. Ne5 {[%emt 0:01:08]} Bxg2 {[%emt 0:00:51]} 14. Kxg2 {[%emt 0:00:04]} Rc8 {[%emt 0:06:55]} 15. Rfd1 {[%emt 0:01:32]} Qd6 {[%emt 0:10:58]} 16. Nd3 {[%emt 0:09:56]} Rfd8 {[%emt 0:06:57]} 17. e3 {[%emt 0:00:54]} c5 {[%emt 0:08:11]} 18. dxc5 {[%emt 0:04:21]} Qc6+ {[%emt 0:00:32]} 19. Kg1 {[%emt 0:00:56]} Bxc5 {[%emt 0:00:49]} 20. Nxc5 {[%emt 0:01:53]} Rxd1+ {[%emt 0:00:25]} 21. Rxd1 {[%emt 0:00:05]} b6 {[%emt 0:02:29]} 22. Qxa6 {[%emt 0:04:31]} Qxc5 {[%emt 0:00:10]} 23. Qb5 {[%emt 0:04:53]} Qc7 {[%emt 0:01:47]} 24. Qb4 {[%emt 0:02:57]} Rd8 {[%emt 0:09:12]} 25. Rxd8+ {[%emt 0:00:42]} Qxd8 {[%emt 0:00:01]} 26. Qd4 {[%emt 0:00:10]} Qc7 {[%emt 0:00:35]} 27. h3 {[%emt 0:05:03]} e5 {[%emt 0:06:21]} 28. Qd3 {[%emt 0:01:13]} Qc5 {[%emt 0:01:43]} 29. Kh2 {[%emt 0:01:01]} Qb4 {[%emt 0:01:34]} 30. Qb5 {[%emt 0:10:43]} Qd6 {[%emt 0:00:16]} 31. Kg2 {[%emt 0:00:09]} h5 {[%emt 0:06:06]} 32. Qc4 {[%emt 0:02:21]} Qd2 {[%emt 0:05:20]} 33. b4 {[%emt 0:00:29]} h4 {[%emt 0:02:30]} 34. gxh4 {[%emt 0:03:12]} Qc2 {[%emt 0:02:25]} 35. a5 {[%emt 0:00:39]} bxa5 {[%emt 0:00:15]} 36. bxa5 {[%emt 0:00:04]} Qg6+ {[%emt 0:02:57]} 37. Kf1 {[%emt 0:00:22]} Qf5 {[%emt 0:01:42]} 38. a6 {[%emt 0:01:14]} Qxh3+ {[%emt 0:01:53]} 39. Ke2 {[%emt 0:00:51]} Qd7 {[%emt 0:03:01]} 40. Qa4 {[%emt 0:00:49]} Qxa4 {[%emt 0:02:21]} 41. Nxa4 {[%emt 0:30:13]} Nd5 {[%emt 0:30:01]} 42. a7 {[%emt 0:00:18]} Nc7 {[%emt 0:00:02]} 43. Nb6 {[%emt 0:00:07]} 1-0

[Event "Niedersachsen-ch Meister 2024"]
[Site "Verden Aller"]
[Date "2024.01.05"]
[Round "4.13"]
[White "Heinemann, Ernst"]
[Black "Oest, Thorsten"]
[Result "1-0"]
[ECO "B50"]
[WhiteElo "2033"]
[BlackElo "1981"]
[Annotator "NA RC"]
[PlyCount "59"]
[EventDate "2024.01.01"]
[EventType "swiss"]
[EventCountry "GER"]
[SourceTitle "playchess.com"]
[Source "ChessBase"]
[SourceQuality "1"]
[TimeControl "40/5400+30:1800+30"]

1. e4 {[%emt 0:00:07]} c5 {[%emt 0:00:05]} 2. Nf3 {[%emt 0:00:28]} d6 {[%emt 0:00:06]} 3. c3 {[%emt 0:00:39]} Nf6 {[%emt 0:01:26]} 4. Be2 {[%emt 0:04:46]} g6 {[%emt 0:01:57]} 5. O-O {[%emt 0:01:11]} Bg7 {[%emt 0:00:12]} 6. Re1 {[%emt 0:00:28]} O-O {[%emt 0:00:26]} 7. Bf1 {[%emt 0:00:11]} b6 {[%emt 0:02:24]} 8. d4 {[%emt 0:02:30]} cxd4 {[%emt 0:04:08]} 9. cxd4 {[%emt 0:00:15]} Bb7 {[%emt 0:00:32]} 10. Nc3 {[%emt 0:00:42]} e6 {[%emt 0:10:33]} 11. h3 {[%emt 0:07:09]} h6 {[%emt 0:06:35]} 12. Bf4 {[%emt 0:01:56]} Nh5 {[%emt 0:06:37]} 13. Bh2 {[%emt 0:03:40]} f5 {[%emt 0:01:28]} 14. Qb3 {[%emt 0:07:17]} d5 {[%emt 0:09:32]} 15. exd5 {[%emt 0:00:49]} Bxd5 {[%emt 0:08:26]} 16. Nxd5 {[%emt 0:02:21]} exd5 {[%emt 0:00:46]} 17. Re6 {[%emt 0:01:46]} Rf6 {[%emt 0:00:48]} 18. Rae1 {[%emt 0:02:12]} Nc6 {[%emt 0:07:55]} 19. Bb5 {[%emt 0:02:33]} Rxe6 {[%emt 0:03:27]} 20. Rxe6 {[%emt 0:00:24]} Na5 {[%emt 0:03:19]} 21. Qa4 {[%emt 0:09:37]} Nf6 {[%emt 0:02:28]} 22. Be5 {[%emt 0:08:24]} Qf8 {[%emt 0:02:56]} 23. b4 {[%emt 0:05:59]} Nc4 {[%emt 0:01:19]} 24. Bc6 {[%emt 0:04:35]} Rd8 {[%emt 0:07:56]} 25. Qxa7 {[%emt 0:01:15]} Kh8 {[%emt 0:02:52]} 26. Nh4 {[%emt 0:05:22]} Nxe5 {[%emt 0:02:23]} 27. dxe5 {[%emt 0:00:30]} Qxb4 {[%emt 0:00:27]} 28. exf6 {[%emt 0:01:17]} Bxf6 {[%emt 0:00:09]} 29. Nxg6+ {[%emt 0:01:28]} Kg8 {[%emt 0:00:08]} 30. Re8+ {[%emt 0:01:54]} 1-0

[Event "Niedersachsen-ch Meister 2024"]
[Site "Verden Aller"]
[Date "2024.01.05"]
[Round "4.14"]
[White "Renner, Kai"]
[Black "Bennemann, Ingmar"]
[Result "0-1"]
[ECO "B67"]
[WhiteElo "2153"]
[BlackElo "1971"]
[Annotator "RC"]
[PlyCount "56"]
[EventDate "2024.01.01"]
[EventType "swiss"]
[EventCountry "GER"]
[SourceTitle "playchess.com"]
[Source "ChessBase"]
[SourceQuality "1"]
[TimeControl "40/5400+30:1800+30"]

1. e4 {[%emt 0:01:21]} c5 {[%emt 0:00:34]} 2. Nf3 {[%emt 0:00:10]} d6 {[%emt 0:00:09]} 3. d4 {[%emt 0:00:09]} cxd4 {[%emt 0:00:05]} 4. Nxd4 {[%emt 0:00:09]} Nf6 {[%emt 0:00:06]} 5. Nc3 {[%emt 0:00:07]} Nc6 {[%emt 0:00:06]} 6. Bg5 {[%emt 0:01:06]} a6 {[%emt 0:00:05]} 7. Qd2 {[%emt 0:00:47]} Bd7 {[%emt 0:00:04]} 8. O-O-O {[%emt 0:00:47]} e6 {[%emt 0:00:05]} 9. Nb3 {[%emt 0:01:55]} b5 {[%emt 0:02:53]} 10. f3 {[%emt 0:06:40]} b4 {[%emt 0:10:58]} 11. Nd5 {[%emt 0:09:37]} exd5 {[%emt 0:04:49]} 12. exd5 {[%emt 0:00:09]} Na5 {[%emt 0:07:17]} 13. Re1+ {[%emt 0:03:24]} Be7 {[%emt 0:00:16]} 14. Bxf6 {[%emt 0:05:40]} Nxb3+ {[%emt 0:00:18]} 15. axb3 {[%emt 0:00:07]} gxf6 {[%emt 0:00:11]} 16. Qxb4 {[%emt 0:18:13]} O-O {[%emt 0:10:26]} 17. Bd3 {[%emt 0:08:50]} f5 {[%emt 0:01:13]} 18. h4 {[%emt 0:01:45]} a5 {[%emt 0:11:30]} 19. Qf4 {[%emt 0:02:47]} a4 {[%emt 0:00:45]} 20. bxa4 {[%emt 0:08:06]} Rxa4 {[%emt 0:01:00]} 21. c4 {[%emt 0:06:33]} Re8 {[%emt 0:20:01]} 22. g4 {[%emt 0:03:09]} Bf8 {[%emt 0:17:51]} 23. gxf5 {[%emt 0:08:28]} Rxe1+ {[%emt 0:01:33]} 24. Rxe1 {[%emt 0:00:04]} Ra1+ {[%emt 0:00:21]} 25. Bb1 {[%emt 0:00:33]} Qf6 {[%emt 0:01:53]} 26. Kd2 {[%emt 0:06:04]} Bh6 {[%emt 0:00:22]} 27. Rg1+ {[%emt 0:00:13]} Kf8 {[%emt 0:03:45]} 28. Rg5 {[%emt 0:00:13]} Rxb1 {[%emt 0:00:14]} 0-1